bitfinex-derivatives/quotes_SOLF0:USTF0_20250419
["timestamp","ask_amount","ask_price","bid_price","bid_amount"]
[1745033134899,1.2579071,138.45,138.34,242.75114766]
[1745033135196,1.2579071,138.45,138.27,0.32094]
[1745033135397,1.2579071,138.45,138.32,412.95790447]
[1745033135794,1.2579071,138.45,138.27,0.32094]
[1745033135995,1.2579071,138.45,138.32,412.95790447]
[1745033136195,1.2579071,138.45,138.27,0.32094]
[1745033136395,102.39247609,138.5,138.3,412.95790447]
[1745033136698,102.39247609,138.5,138.29,412.95790447]
[1745033136894,1.25822547,138.4,138.29,412.95790447]
[1745033137300,1.25822547,138.4,138.27,0.32094]
[1745033137598,1.25822547,138.4,138.28,414.28625845]
[1745033137800,1.25822547,138.4,138.28,412.95790447]
[1745033138299,1.25822547,138.4,138.29,242.75114766]
[1745033138498,1.25822547,138.4,138.27,0.32094]
[1745033138700,1.25822547,138.4,138.28,414.28632916]
[1745033138993,1.25822547,138.4,138.28,412.95790447]
[1745033139398,102.39247609,138.45,138.28,412.95790447]
[1745033139798,1.25836196,138.4,138.28,412.95790447]
[1745033140299,1.25836196,138.4,138.27,0.32094]
[1745033142296,102.39247609,138.45,138.27,0.32094]
[1745033142693,1.25886268,138.39,138.27,0.32094]
[1745033148104,102.39247609,138.38,138.27,0.32094]
[1745033148703,1.25963731,138.37,138.27,0.32094]
[1745033152503,1.25963731,138.37,138.04,4.946]
[1745033152704,1.25963731,138.37,138.24,242.75114766]
[1745033152909,1.25963731,138.37,138.25,242.75114766]
[1745033153312,1.25963731,138.37,138.27,242.75114766]
[1745033153704,1.25963731,138.37,138.28,412.95790447]
[1745033154105,1.25963731,138.37,138.29,412.95790447]
[1745033154509,1.25963731,138.37,138.3,412.95790447]
[1745033154710,1.25963731,138.37,138.31,242.75114766]
[1745033154909,1.25963731,138.37,138.31,412.95790447]
[1745033155110,1.25963731,138.37,138.32,242.75114766]
[1745033155409,1.25963731,138.37,138.32,412.95790447]
[1745033155605,1.25963731,138.37,138.32,242.75114766]
[1745033156109,1.25963731,138.37,138.21,0.34031]
[1745033156311,1.25963731,138.37,138.29,412.95790447]
[1745033157208,1.25963731,138.37,138.21,0.34031]
[1745033157408,1.25963731,138.37,138.29,412.95790447]
[1745033157805,1.25963731,138.37,138.21,0.34031]
[1745033158111,1.25963731,138.37,138.29,242.75114766]
[1745033158505,1.25963731,138.37,138.21,0.34031]
[1745033158710,1.25963731,138.37,138.28,242.75114766]
[1745033159209,1.25963731,138.37,138.21,0.34031]
[1745033159406,1.25963731,138.37,138.28,242.75114766]
[1745033159806,1.25963731,138.37,138.21,0.34031]
[1745033160011,1.25963731,138.37,138.28,242.75114766]
[1745033160407,2.65325832,139.71,138.21,0.34031]
[1745033160607,2.65325832,139.71,138.28,242.75114766]
[1745033160812,1.25559244,138.36,138.28,242.75114766]
[1745033161010,1.25559244,138.36,138.27,170.20675681]
[1745033161011,2.65325832,139.7,138.21,0.34031]
[1745033161208,2.65325832,139.7,138.28,242.75114766]
[1745033161615,2.65325832,139.7,138.21,0.34031]
[1745033161814,1.25561509,139.69,138.27,412.95790447]
[1745033162114,1.25561509,139.69,138.26,242.75114766]
[1745033162514,1.25561509,139.69,138.21,0.34031]
[1745033162711,1.25561509,139.69,138.26,242.75114766]
[1745033163113,1.25561509,139.69,138.21,0.34031]
[1745033163414,2.65325832,139.7,138.26,242.75114766]
[1745033163814,1.25634037,139.68,138.21,0.34031]
[1745033164012,1.25634037,139.68,138.26,242.75114766]
[1745033164414,1.25634037,139.68,138.21,0.34031]
[1745033164612,3.90959869,139.68,138.27,242.75114766]
[1745033165114,3.90959869,139.68,138.21,0.34031]
[1745033165315,3.90959869,139.68,138.26,242.75114766]
[1745033165717,3.90959869,139.68,138.21,0.34031]
[1745033165917,3.90959869,139.68,138.25,242.75114766]
[1745033166319,3.90959869,139.68,138.21,0.34031]
[1745033166519,3.90959869,139.68,138.25,242.75114766]
[1745033166916,3.90959869,139.68,138.21,0.34031]
[1745033167116,3.90959869,139.68,138.25,242.75114766]
[1745033167517,3.90959869,139.68,138.21,0.34031]
[1745033167718,3.90959869,139.68,138.25,242.75114766]
[1745033168116,3.90959869,139.68,138.21,0.34031]
[1745033168317,2.65325832,139.67,138.25,242.75114766]
[1745033168518,2.65325832,139.67,138.23,412.95790447]
[1745033168919,2.65325832,139.67,138.23,242.75114766]
[1745033169414,2.65325832,139.67,138.03,4.946]
[1745033169620,2.65325832,139.67,138.22,242.75114766]
[1745033169820,1.25652182,139.66,138.22,242.75114766]
[1745033170021,1.25652182,139.66,137.98,3.79780301]
[1745033170217,1.25652182,139.66,138.22,242.75114766]
[1745033170621,1.25652182,139.66,138.0,3.79780301]
[1745033170916,1.25652182,139.66,138.25,170.20675681]
[1745033171121,1.25652182,139.66,138.06,4.946]
[1745033171320,1.25652182,139.66,138.25,242.75114766]
[1745033171722,3.90978014,139.66,138.04,8.74283995]
[1745033171917,3.90978014,139.66,138.25,242.75114766]
[1745033172123,3.90978014,139.66,138.05,1.32941985]
[1745033172323,3.90978014,139.66,138.25,242.75114766]
[1745033172521,3.90978014,139.66,138.24,412.95790447]
[1745033172823,3.90978014,139.66,138.04,4.946]
[1745033173023,3.90978014,139.66,138.23,242.75114766]
[1745033173218,3.90978014,139.66,138.22,242.75114766]
[1745033173419,3.90978014,139.66,138.02,3.79689649]
[1745033173622,3.90978014,139.66,138.22,242.75114766]
[1745033174118,3.90978014,139.66,138.03,8.74386979]
[1745033174324,3.90978014,139.66,138.22,242.75114766]
[1745033174724,3.90978014,139.66,138.03,4.946]
[1745033174923,3.90978014,139.66,138.22,242.75114766]
[1745033175123,3.90978014,139.66,138.21,170.20675681]
[1745033175124,3.90978014,139.66,138.03,3.7966215]
[1745033175325,2.65325832,139.64,138.22,242.75114766]
[1745033175520,2.65325832,139.64,138.03,3.7966215]
[1745033175722,2.65325832,139.64,138.22,242.75114766]
[1745033176024,2.65325832,139.64,138.03,4.946]
[1745033176225,2.65325832,139.64,138.22,242.75114766]
[1745033176628,2.65325832,139.64,138.02,3.79593524]
[1745033176827,2.65325832,139.64,138.22,242.75114766]
[1745033177326,2.65325832,139.64,138.02,3.79593524]
[1745033177526,2.65325832,139.64,138.21,412.95790447]
[1745033177726,2.65325832,139.64,138.24,242.75114766]
[1745033178126,2.65325832,139.64,138.23,170.20675681]
[1745033178127,2.65325832,139.64,138.02,3.7962061]
[1745033178427,3.90978014,139.66,138.24,242.75114766]
[1745033179026,3.90978014,139.66,138.02,3.79458538]
[1745033179227,3.90978014,139.66,138.25,242.75114766]
[1745033179729,3.90978014,139.66,138.02,3.79458538]
[1745033179927,3.90978014,139.66,138.25,242.75114766]
[1745033180326,3.90978014,139.66,138.02,3.79629039]
[1745033180527,3.90978014,139.66,138.25,242.75114766]
[1745033180922,3.90978014,139.66,138.02,3.79629039]
[1745033181125,3.90978014,139.66,138.25,242.75114766]
[1745033181327,2.65325832,139.66,138.25,242.75114766]
[1745033181522,2.65325832,139.66,138.02,3.79622005]
[1745033181728,2.65325832,139.66,136.93,2.66703953]
[1745033181729,1.25595496,139.65,138.25,242.75114766]
[1745033182227,1.25595496,139.65,138.02,3.79622005]
[1745033182428,1.25595496,139.65,138.25,242.75114766]
[1745033182823,1.25595496,139.65,136.93,2.66703953]
[1745033183128,1.25595496,139.65,138.25,242.75114766]
[1745033183429,1.25595496,139.65,138.07,4.946]
[1745033183723,1.25595496,139.65,138.25,242.75114766]
[1745033184229,1.25595496,139.65,138.07,4.946]
[1745033184430,1.25595496,139.65,138.25,242.75114766]
[1745033184830,1.25595496,139.65,138.03,3.7970685]
[1745033185031,1.25595496,139.65,138.25,242.75114766]
[1745033185531,1.25595496,139.65,138.02,3.7969138]
[1745033185725,1.25595496,139.65,138.25,242.75114766]
[1745033186126,1.25595496,139.65,138.03,3.7969138]
[1745033186326,1.25595496,139.65,138.25,242.75114766]
[1745033186827,1.25595496,139.65,138.03,3.7969138]
[1745033187026,1.25595496,139.65,138.25,242.75114766]
[1745033187427,1.25595496,139.65,138.03,3.7969138]
[1745033187732,1.25595496,139.65,138.24,242.75114766]
[1745033187935,2.65325832,139.64,138.24,242.75114766]
[1745033188231,2.65325832,139.64,138.02,3.79771596]
[1745033188432,2.65325832,139.64,138.24,242.75114766]
[1745033188632,2.65325832,139.64,138.02,3.79771596]
[1745033188832,2.65325832,139.64,138.24,242.75114766]
[1745033189029,2.65325832,139.64,138.02,3.79771596]
[1745033189235,2.65325832,139.64,138.24,242.75114766]
[1745033189529,2.65325832,139.64,137.93,3.79720461]
[1745033189726,2.65325832,139.64,138.2,242.75114766]
[1745033190132,2.65325832,139.64,138.01,6.2756001]
[1745033190434,2.65325832,139.64,138.2,242.75114766]
[1745033190632,2.65325832,139.64,138.2,412.95790447]
[1745033190830,1.25668063,139.63,138.21,242.75114766]
[1745033191035,2.65325832,139.62,138.23,242.75114766]
[1745033191235,2.65325832,139.62,138.22,170.20675681]
[1745033191434,2.65325832,139.62,138.24,242.75114766]
[1745033191833,2.65325832,139.62,138.01,1.3296001]
[1745033192030,2.65325832,139.62,138.24,242.75114766]
[1745033192334,2.65325832,139.62,138.04,4.946]
[1745033192534,2.65325832,139.62,138.24,242.75114766]
[1745033192736,2.65325832,139.62,138.18,242.75114766]
[1745033192938,2.65325832,139.62,138.17,242.75114766]
[1745033193235,2.65325832,139.62,138.18,242.75114766]
[1745033193430,2.65325832,139.62,138.19,242.75114766]
[1745033193833,2.65325832,139.62,138.01,1.3296001]
[1745033194033,2.65325832,139.59,138.19,242.75114766]
[1745033194433,2.65325832,139.59,138.01,1.3296001]
[1745033194637,2.65325832,139.59,138.21,242.75114766]
[1745033194839,2.65325832,139.59,138.22,242.75114766]
[1745033195235,2.65325832,139.59,138.01,1.3296001]
[1745033195438,2.65325832,139.59,138.22,242.75114766]
[1745033195741,2.65325832,139.59,138.21,242.75114766]
[1745033196037,2.65325832,139.59,138.01,1.3296001]
[1745033196237,2.65325832,139.59,138.21,242.75114766]
[1745033196738,1.25638572,139.58,138.01,1.3296001]
[1745033196939,1.25638572,139.58,138.21,242.75114766]
[1745033197339,1.25638572,139.58,138.01,1.3296001]
[1745033197539,1.25638572,139.58,138.21,242.75114766]
[1745033198036,1.25638572,139.58,138.01,1.3296001]
[1745033198241,1.25638572,139.58,138.21,242.75114766]
[1745033198441,1.25638572,139.58,138.22,242.75114766]
[1745033198839,1.25638572,139.58,138.01,1.3296001]
[1745033199035,1.25638572,139.58,138.22,242.75114766]
[1745033199434,2.65325832,139.61,138.01,1.3296001]
[1745033199639,2.65325832,139.62,138.22,242.75114766]
[1745033199836,1.25627234,139.57,138.22,242.75114766]
[1745033200141,2.65325832,139.62,138.02,4.946]
[1745033200437,2.65325832,139.62,138.22,242.75114766]
[1745033200840,1.25670332,139.61,138.02,4.946]
[1745033201038,1.25670332,139.61,138.22,242.75114766]
[1745033201435,1.25670332,139.61,138.02,4.946]
[1745033201637,1.25670332,139.61,138.23,412.95790447]
[1745033202036,1.25670332,139.61,138.23,242.75114766]
[1745033203239,1.25670332,139.61,138.24,170.20675681]
[1745033203436,1.25670332,139.61,138.24,412.95790447]
[1745033203637,1.25670332,139.61,138.25,242.75114766]
[1745033203937,1.25670332,139.61,138.25,412.95790447]
[1745033204136,1.25670332,139.61,138.07,4.946]
[1745033204338,1.25670332,139.61,138.25,412.95790447]
[1745033204838,1.25670332,139.61,138.25,242.75114766]
[1745033208543,2.65325832,139.67,138.25,242.75114766]
[1745033208844,1.2559323,139.6,138.25,242.75114766]
[1745033209243,2.65325832,139.67,138.25,242.75114766]
[1745033210547,1.2559323,139.66,138.25,242.75114766]
[1745033211441,2.65325832,139.67,138.25,242.75114766]
[1745033211842,1.2559323,139.65,138.25,242.75114766]
[1745033215250,1.2559323,139.65,138.07,4.946]
[1745033215452,1.2559323,139.65,138.22,242.75114766]
[1745033215948,1.2559323,139.65,138.02,3.79487557]
[1745033216146,1.2559323,139.65,138.22,242.75114766]
[1745033216343,1.2559323,139.65,138.02,3.79487557]
[1745033216545,2.65325832,139.64,138.22,242.75114766]
[1745033216951,2.65325832,139.64,138.02,3.79507949]
[1745033217151,2.65325832,139.64,138.22,242.75114766]
[1745033217351,2.65325832,139.64,138.02,3.79507949]
[1745033217551,2.65325832,139.64,138.22,242.75114766]
[1745033217949,2.65325832,139.64,138.02,3.79507949]
[1745033218146,2.65325832,139.64,138.22,242.75114766]
[1745033218349,2.65325832,139.64,138.03,1.32961267]
[1745033218545,2.65325832,139.64,138.22,242.75114766]
[1745033218752,1.25665794,139.63,138.03,1.32961267]
[1745033218955,1.25665794,139.63,138.22,242.75114766]
[1745033219355,1.25665794,139.63,138.25,242.75114766]
[1745033219751,1.25665794,139.63,138.03,5.12311887]
[1745033219951,1.25665794,139.63,138.25,242.75114766]
[1745033220152,1.25665794,139.63,138.03,5.12311887]
[1745033220352,2.65325832,139.65,138.25,242.75114766]
[1745033220750,1.25647645,139.62,138.04,3.79337017]
[1745033220951,2.65325832,139.65,138.25,242.75114766]
[1745033221352,1.25645377,139.61,138.04,3.79303169]
[1745033221551,2.65325832,139.65,138.25,242.75114766]
[1745033221754,1.25645377,139.6,138.25,242.75114766]
[1745033221955,1.25645377,139.6,138.04,3.79303169]
[1745033222155,2.65325832,139.65,138.25,242.75114766]
[1745033222357,1.25645377,139.59,138.25,242.75114766]
[1745033222555,1.25645377,139.59,138.03,5.12264436]
[1745033222759,2.65325832,139.65,138.25,242.75114766]
[1745033223056,1.25597762,139.58,138.25,242.75114766]
[1745033223257,2.65325832,139.65,138.06,4.946]
[1745033223554,1.25597762,139.57,138.24,242.75114766]
[1745033223751,2.65325832,139.65,138.24,242.75114766]
[1745033223954,2.65325832,139.65,138.03,1.32961267]
[1745033224154,1.25600029,139.56,138.24,242.75114766]
[1745033224354,2.65325832,139.65,138.03,1.32961267]
[1745033224554,2.65325832,139.65,138.22,242.75114766]
[1745033225054,2.65325832,139.65,138.23,170.20675681]
[1745033225258,2.65325832,139.64,138.23,170.20675681]
[1745033225459,3.90934928,139.64,138.24,242.75114766]
[1745033225657,3.90934928,139.64,138.03,1.32961267]
[1745033225857,3.90934928,139.64,138.24,242.75114766]
[1745033226058,3.90934928,139.64,138.03,1.32961267]
[1745033226254,3.90934928,139.64,138.24,242.75114766]
[1745033226454,2.65325832,139.64,138.25,242.75114766]
[1745033226656,2.65325832,139.64,138.25,412.95790447]
[1745033226953,1.2559323,139.63,138.25,242.75114766]
[1745033228359,1.2559323,139.63,138.08,4.946]
[1745033228557,1.2559323,139.63,138.23,242.75114766]
[1745033228961,1.2559323,139.63,138.04,4.946]
[1745033229161,1.2559323,139.63,138.23,242.75114766]
[1745033229362,1.2559323,139.63,138.03,1.32961267]
[1745033229562,1.2559323,139.63,138.23,242.75114766]
[1745033229762,1.2559323,139.63,138.03,5.12450677]
[1745033229963,1.2559323,139.63,138.23,242.75114766]
[1745033230164,1.2559323,139.63,138.03,1.32961267]
[1745033230363,1.2559323,139.63,138.23,242.75114766]
[1745033230863,1.2559323,139.63,138.03,5.12475172]
[1745033231065,1.2559323,139.63,138.23,242.75114766]
[1745033231264,1.2559323,139.63,138.04,1.32951837]
[1745033231464,1.2559323,139.63,138.24,242.75114766]
[1745033231665,1.2559323,139.63,138.25,242.75114766]
[1745033231964,1.2559323,139.63,138.25,412.95790447]
[1745033232159,1.2559323,139.63,138.25,242.75114766]
[1745033232466,2.65325832,139.65,138.25,242.75114766]
[1745033232768,1.25588697,139.62,138.25,242.75114766]
[1745033233162,2.65325832,139.66,138.25,242.75114766]
[1745033233765,1.25586431,139.65,138.25,242.75114766]
[1745033234065,1.25586431,139.65,138.04,3.79449787]
[1745033234261,1.25586431,139.65,138.26,242.75114766]
[1745033234467,1.25586431,139.65,138.27,242.75114766]
[1745033234860,1.25586431,139.65,138.05,3.79449787]
[1745033235064,1.25586431,139.65,138.27,242.75114766]
[1745033235465,1.25586431,139.65,138.06,3.79449787]
[1745033235666,1.25586431,139.65,138.26,412.95790447]
[1745033235865,1.25586431,139.65,138.27,242.75114766]
[1745033236265,1.25586431,139.65,138.04,3.79449787]
[1745033236465,1.25586431,139.65,138.27,242.75114766]
[1745033236862,1.25586431,139.65,138.04,3.79449787]
[1745033237066,1.25586431,139.65,138.27,242.75114766]
[1745033237569,1.25586431,139.65,138.04,3.79449787]
[1745033237763,1.25586431,139.65,138.27,242.75114766]
[1745033238169,1.25586431,139.65,138.04,3.79449787]
[1745033238368,1.25586431,139.65,138.27,242.75114766]
[1745033238765,1.25586431,139.65,138.04,3.79449787]
[1745033238964,1.25586431,139.65,138.27,242.75114766]
[1745033239472,1.25586431,139.65,138.06,3.79191963]
[1745033239665,1.25586431,139.65,138.27,242.75114766]
[1745033240069,1.25586431,139.65,138.06,3.79191963]
[1745033240265,1.25586431,139.65,138.27,242.75114766]
[1745033240770,1.25586431,139.65,138.05,3.79111909]
[1745033240972,1.25586431,139.65,138.27,242.75114766]
[1745033241471,2.65325832,139.68,138.1,4.946]
[1745033241673,2.65325832,139.68,138.27,242.75114766]
[1745033241870,1.25572836,139.64,138.27,242.75114766]
[1745033242171,2.65325832,139.68,138.1,4.946]
[1745033242367,2.65325832,139.68,138.26,242.75114766]
[1745033242771,1.25579633,139.67,138.07,4.946]
[1745033242970,1.25579633,139.67,138.26,242.75114766]
[1745033243472,1.25579633,139.67,138.04,3.79111909]
[1745033243671,1.25579633,139.67,138.26,242.75114766]
[1745033244068,1.25579633,139.67,138.05,3.79141384]
[1745033244274,1.25579633,139.67,138.26,242.75114766]
[1745033244474,2.65325832,139.67,138.26,242.75114766]
[1745033244774,2.65325832,139.67,138.04,3.79141384]
[1745033244975,1.25581899,139.66,138.26,242.75114766]
[1745033245376,1.25581899,139.66,138.05,3.79141384]
[1745033245578,1.25581899,139.66,138.26,242.75114766]
[1745033245774,1.25581899,139.66,138.25,412.95790447]
[1745033245971,1.25581899,139.66,138.25,242.75114766]
[1745033246577,1.25581899,139.66,138.07,4.946]
[1745033246778,1.25581899,139.66,138.25,242.75114766]
[1745033246978,1.25581899,139.66,138.02,3.79141384]
[1745033247179,3.90907731,139.66,138.24,242.75114766]
[1745033247377,3.90907731,139.66,138.23,242.75114766]
[1745033247574,3.90907731,139.66,138.03,5.12102651]
[1745033247776,3.90907731,139.66,138.23,242.75114766]
[1745033247972,3.90907731,139.66,138.03,5.1226007]
[1745033248176,3.90907731,139.66,138.23,412.95790447]
[1745033248374,3.90907731,139.66,138.23,242.75114766]
[1745033249975,2.65325832,139.65,138.24,242.75114766]
[1745033250377,2.65325832,139.65,138.03,5.1224675]
[1745033250578,2.65325832,139.65,138.24,242.75114766]
[1745033250776,1.25604562,139.64,138.24,242.75114766]
[1745033251080,1.25604562,139.64,138.07,4.946]
[1745033251378,1.25604562,139.64,138.24,242.75114766]
[1745033251880,1.25604562,139.64,138.05,4.946]
[1745033252074,1.25604562,139.64,138.24,242.75114766]
[1745033252779,1.25604562,139.64,138.26,242.75114766]
[1745033253279,1.25604562,139.64,138.04,3.79285483]
[1745033253476,2.65325832,139.65,138.26,242.75114766]
[1745033253875,1.2564084,139.63,138.04,3.79285483]
[1745033254077,1.2564084,139.63,138.26,242.75114766]
[1745033254280,1.2564084,139.63,138.02,3.79285483]
[1745033254476,1.2564084,139.63,138.26,242.75114766]
[1745033254876,1.2564084,139.63,138.03,5.1224675]
[1745033255080,1.2564084,139.63,138.26,242.75114766]
[1745033255279,1.2564084,139.63,138.03,5.1224675]
[1745033255580,1.2564084,139.63,138.26,242.75114766]
[1745033255777,1.2564084,139.63,138.03,5.12270513]
[1745033255981,1.2564084,139.63,138.26,242.75114766]
[1745033256182,1.2564084,139.63,138.03,5.12270513]
[1745033256379,1.2564084,139.63,138.26,242.75114766]
[1745033256583,2.65325832,139.65,138.03,5.12270513]
[1745033256883,1.25590963,139.62,138.22,170.20675681]
[1745033257183,2.65325832,139.65,138.23,242.75114766]
[1745033257578,1.25609096,139.61,138.03,5.12270513]
[1745033257777,2.65325832,139.65,138.23,242.75114766]
[1745033258179,1.25652182,139.6,138.03,1.32961267]
[1745033258376,2.65325832,139.65,138.23,242.75114766]
[1745033258577,1.2565445,139.59,138.23,242.75114766]
[1745033258780,1.2565445,139.59,138.22,170.20675681]
[1745033258781,1.2565445,139.59,138.03,1.32961267]
[1745033259083,2.65325832,139.65,138.23,242.75114766]
[1745033259279,1.2565445,139.58,138.24,242.75114766]
[1745033259480,2.65325832,139.65,138.24,242.75114766]
[1745033259679,2.65325832,139.65,138.03,1.32961267]
[1745033259875,1.25604562,139.57,138.24,242.75114766]
[1745033260080,2.65325832,139.65,138.23,170.20675681]
[1745033260278,2.65325832,139.65,138.24,242.75114766]
[1745033260678,2.65325832,139.65,138.03,5.12212092]
[1745033260877,2.65325832,139.65,138.25,412.95790447]
[1745033261082,2.65325832,139.65,138.25,242.75114766]
[1745033261281,2.65325832,139.67,138.25,242.75114766]
[1745033261484,1.25597762,139.64,138.25,242.75114766]
[1745033261780,2.65325832,139.67,138.25,170.20675681]
[1745033261980,1.25588697,139.63,138.26,242.75114766]
[1745033262179,1.25588697,139.63,138.27,242.75114766]
[1745033262381,2.65325832,139.67,138.27,242.75114766]
[1745033262579,1.25579633,139.62,138.04,3.79250825]
[1745033262785,2.65325832,139.67,138.27,242.75114766]
[1745033263188,1.25631769,139.61,138.05,3.79250825]
[1745033263384,2.65325832,139.67,138.27,242.75114766]
[1745033263785,2.65325832,139.67,138.04,3.79250825]
[1745033263985,2.65325832,139.67,138.27,242.75114766]
[1745033264185,2.65325832,139.67,138.26,242.75114766]
[1745033264386,1.25631769,139.66,138.05,3.78794685]
[1745033264586,1.25631769,139.66,138.26,242.75114766]
[1745033265088,1.25631769,139.66,138.04,3.78794685]
[1745033265289,1.25631769,139.66,138.26,242.75114766]
[1745033265588,2.65325832,139.67,138.25,170.20675681]
[1745033265788,1.25636305,139.65,138.26,242.75114766]
[1745033265990,1.25636305,139.65,138.03,1.32961267]
[1745033266190,1.25636305,139.65,138.25,242.75114766]
[1745033266591,1.25636305,139.65,138.03,5.11755952]
[1745033266889,3.90962137,139.65,138.25,242.75114766]
[1745033267090,3.90962137,139.65,138.27,242.75114766]
[1745033267586,3.90962137,139.65,138.09,4.946]
[1745033267791,3.90962137,139.65,138.27,242.75114766]
[1745033268286,3.90962137,139.65,138.09,4.946]
[1745033268492,3.90962137,139.65,138.27,242.75114766]
[1745033268891,3.90962137,139.65,138.07,3.78288034]
[1745033269091,3.90962137,139.65,138.27,242.75114766]
[1745033269286,3.90962137,139.65,138.26,242.75114766]
[1745033269485,3.90962137,139.65,138.04,3.78251665]
[1745033269689,1.25636305,139.65,138.26,242.75114766]
[1745033270089,1.25636305,139.65,138.25,170.20675681]
[1745033270090,1.25636305,139.65,138.05,3.78251665]
[1745033270287,1.25636305,139.65,138.26,242.75114766]
[1745033270691,1.25636305,139.65,138.05,3.78251665]
[1745033270887,1.25636305,139.65,138.26,242.75114766]
[1745033271290,1.25636305,139.65,138.09,4.946]
[1745033271488,2.65325832,139.67,138.25,242.75114766]
[1745033271991,2.65325832,139.67,138.04,3.7844156]
[1745033272288,2.65325832,139.67,138.25,242.75114766]
[1745033272488,2.65325832,139.67,138.04,3.7844156]
[1745033272688,2.65325832,139.67,138.25,242.75114766]
[1745033272893,2.65325832,139.67,138.05,3.7844156]
[1745033273093,2.65325832,139.67,138.27,242.75114766]
[1745033273293,1.25584165,139.66,138.27,242.75114766]
[1745033273592,1.25584165,139.66,138.05,3.7844156]
[1745033273593,1.25584165,139.66,138.06,3.7844156]
[1745033273888,1.25584165,139.66,138.27,242.75114766]
[1745033274292,1.25584165,139.66,138.06,3.7844156]
[1745033274493,1.25584165,139.66,138.27,242.75114766]
[1745033274992,1.25584165,139.66,138.05,3.7844156]
[1745033274993,1.25584165,139.66,138.06,3.7844156]
[1745033275188,1.25584165,139.66,138.26,242.75114766]
[1745033275388,1.25584165,139.66,138.25,170.20675681]
[1745033275588,1.25584165,139.66,138.26,242.75114766]
[1745033276088,1.25584165,139.66,138.04,3.78356822]
[1745033276287,1.25584165,139.66,138.26,242.75114766]
[1745033276690,1.25584165,139.66,138.05,3.78356822]
[1745033276889,1.25584165,139.66,138.26,242.75114766]
[1745033277291,1.25584165,139.66,138.04,3.78356822]
[1745033277491,1.25584165,139.66,138.26,242.75114766]
[1745033277892,1.25584165,139.66,138.05,3.78356822]
[1745033278198,1.25584165,139.66,138.26,242.75114766]
[1745033278592,1.25584165,139.66,138.04,3.78356822]
[1745033278796,1.25584165,139.66,138.26,242.75114766]
[1745033279195,1.25584165,139.66,138.05,3.78356822]
[1745033279395,1.25584165,139.66,138.26,242.75114766]
[1745033279795,1.25584165,139.66,138.04,3.78356822]
[1745033279995,1.25584165,139.66,138.26,242.75114766]
[1745033280193,1.25584165,139.66,138.04,3.78356822]
[1745033280397,2.65325832,139.67,138.26,242.75114766]
[1745033280799,1.25636305,139.65,138.04,3.78356822]
[1745033280994,1.25636305,139.65,138.26,242.75114766]
[1745033281195,1.25636305,139.65,138.25,170.20675681]
[1745033281396,1.25636305,139.65,138.26,242.75114766]
[1745033281801,1.25636305,139.65,138.05,3.78356822]
[1745033281999,1.25636305,139.65,138.26,242.75114766]
[1745033282397,1.25636305,139.65,138.08,4.946]
[1745033282599,1.25636305,139.65,138.26,242.75114766]
[1745033282996,1.25636305,139.65,138.05,3.78357155]
[1745033283195,1.25636305,139.65,138.26,242.75114766]
[1745033283501,2.65325832,139.67,138.25,242.75114766]
[1745033283695,2.65325832,139.67,138.04,3.78357155]
[1745033283897,1.25590963,139.64,138.25,242.75114766]
[1745033284096,2.65325832,139.67,138.04,3.78357155]
[1745033284297,2.65325832,139.67,138.25,242.75114766]
[1745033284500,2.65325832,139.67,138.04,3.78357155]
[1745033284701,2.65325832,139.67,138.25,242.75114766]
[1745033285001,1.2559323,139.66,138.04,3.78357155]
[1745033285201,1.2559323,139.66,138.25,242.75114766]
[1745033285397,1.2559323,139.66,138.04,3.78354051]
[1745033285595,1.2559323,139.66,138.25,242.75114766]
[1745033286096,1.2559323,139.66,138.05,3.78354051]
[1745033286297,1.2559323,139.66,138.25,242.75114766]
[1745033286500,2.65325832,139.67,138.25,242.75114766]
[1745033286697,1.2559323,139.65,138.04,3.78312846]
[1745033286899,1.2559323,139.65,138.25,242.75114766]
[1745033287302,1.2559323,139.65,138.05,3.78312846]
[1745033287503,1.2559323,139.65,138.25,242.75114766]
[1745033287897,1.2559323,139.65,138.04,3.78310093]
[1745033288097,1.2559323,139.65,138.25,242.75114766]
[1745033288604,1.2559323,139.65,138.05,3.78310093]
[1745033288904,1.2559323,139.65,138.25,242.75114766]
[1745033289303,1.2559323,139.65,138.04,3.78310093]
[1745033289501,2.65325832,139.67,138.04,3.78310093]
[1745033289502,2.65325832,139.67,138.25,242.75114766]
[1745033289701,2.65325832,139.67,138.24,170.20675681]
[1745033290001,1.25588697,139.66,138.24,242.75114766]
[1745033290705,1.25588697,139.66,138.06,4.946]
[1745033290907,1.25588697,139.66,138.24,242.75114766]
[1745033291306,1.25588697,139.66,138.04,3.78410136]
[1745033291501,1.25588697,139.66,138.24,242.75114766]
[1745033291908,1.25588697,139.66,138.04,3.78410136]
[1745033292108,1.25588697,139.66,138.24,242.75114766]
[1745033292308,1.25588697,139.66,138.04,3.78410136]
[1745033292508,2.65325832,139.67,138.24,242.75114766]
[1745033292804,1.2564084,139.65,138.24,242.75114766]
[1745033293005,1.2564084,139.65,138.04,3.78429118]
[1745033293309,1.2564084,139.65,138.24,242.75114766]
[1745033293711,1.2564084,139.65,138.04,3.78429118]
[1745033294011,1.2564084,139.65,138.24,242.75114766]